Workbook

Sheet Mérleg
F1: 1. számú melléklet
B3: 2012. évi Mérleg (társulás nélkül)
F4: eFt
B5: Bevételek | E5: Kiadások | H5: ,
C6: 2012 | F6: 2012
B8: Intézm. működési bev. | C8: 12925 | E8: Személyi juttatások | F8: 10150
B9: Önk. saj. működési bev. | C9: 90793 | E9: Munkaadót terh. befizetések | F9: 2986
B10: Önk.költségv.támogatása | C10: 13023 | E10: Dologi kiadások | F10: 34865
B11: Felhalmozási bevételek | C11: 360 | E11: Segélyek, egyéb pénzbeli jutt. | F11: 2446
B12: Átvett pénzeszk.(működési) | C12: 3750 | E12: Átadott pénzeszközök | F12: 74867
B13: Átvett pénzeszk.(felhalm.) | C13: 27737 | E13: 2011 évi működési hiány | F13: 9333
B14: Tárgyévi bevételek | C14: =SUM(C8:C13) -> 148588 | E14: Tárgyévi működési kiadások | F14: =SUM(F8:F13) -> 134647
E15: fejlesztési hitel törl. 2012.évi | F15: 41454
B16: Hiány | C16: 36000 | E16: fejlesztési hitel törl. 2011.évi | F16: 4114
E17: Fejlesztés (műv.ház) | F17: 3350
E18: Általános tartalék | F18: 1023
B19: Mindösszesen | C19: =SUM(C14:C18) -> 184588 | D19: =D14+D16+D17 -> 0 | E19: Mindösszesen | F19: =SUM(F14:F18) -> 184588

Sheet Bevét.
C1: 2. számú melléklet
B3: Bevételek
B4: 2012. évi költségvetés
C5: eFt-ban
C6: 2012
B7: Intézményi működési bevételek
B8: Felügyeleti jellegű tev.díja | C8: 0
B9: Alaptev. szolgáltatás | C9: 600
B10: Egyéb sajátos bevétel | C10: 0
B11: Tovább számlázott szolg. bevételei | C11: 0
B12: Bérleti díjak | C12: 5254
B13: Kötbér, bírság, kártérítés | C13: 0
B14: Kiszámlázott ÁFA | C14: 1135
B15: ÁFA visszatérülés | C15: 5936 | D15: Műv.Ház
B16: Kamatbevétel | C16: 0
B17: Intézményi működési bevételek össz. | C17: =SUM(C8:C16) -> 12925
B19: Önkorm. sajátos műk. bevételei
B20: Helyi adók
B21: Telek építményadó | C21: 2000
B22: Építményadó | C22: 7500
B23: Kommunális adó
B24: Iparűzési adó (állandó) | C24: 35000
B25: Átengedett központi adók
B26: Pótlék, bírság
B27: SZJA helyben maradó része | C27: 18890
B28: SZJA jöv. különbség mérséklése | C28: 16203
B29: Gépjármű súlyadó | C29: 11000
B30: Egyéb sajátos bevételek
B31: Talajterhelési díj | C31: 200
B32: Szabálysértési bírság
B33: Önkorm. sajátos működési bev.össz. | C33: =SUM(C21:C32) -> 90793
B34: Önkorm.költségvetési tám.
B35: Normatív állami támogatás | C35: 13023
B36: Költségvetési támogatás összesen | C36: =SUM(C35) -> 13023
B38: Felhalmozási bevételek
B39: közmű fejl. hozzájárulás | C39: 360
B40: Felhalmozási bevételek összesen: | C40: =SUM(C39) -> 360
B41: Működési célú pénzeszk.átvétel
B42: MEP finanszírozás | C42: 3150
B43: Mezőőr | C43: 600
B44: Működési célú pénzeszk átvétel össz. | C44: =SUM(C42:C43) -> 3750
B45: Felhalmozási célú pénzeszk.átvétel:
B46: IKSZT Pályázat Műv.Ház eszközbesz. | C46: 1260
B47: IKSZT Pályázat Műv.Ház | C47: 26477
B48: Felhalmozási célú pénzeszk.átvétel össz.: | C48: =SUM(C46:C47) -> 27737

Sheet Normatíva
A3: Állami támogatás adatai
A4: 2012. évi költségvetés
B6: eFt-ban
A7: Megnevezés | B7: 2012
A9: Népességszám | B9: 1780 fő
A11: Települési önkormányzatok üzemeltetési, igazgatási, sport-és kulturális feladatai | B11: 7252
A12: Lakott külterülettel kapcs. feladatok | B12: 21
A13: Pénzbeli szociális ell. | B13: 5750
A15: Normatív támogatás összesen : | B15: =SUM(B11:B14) -> 13023
A18: SZJA helyben maradó része | B18: 18890
A19: SZJA jövedelem különbség alapján | B19: 16203
A20: Ö s s z e s e n : | B20: =SUM(B18:B19) -> 35093
A22: Állami támogatás mindösszesen: | B22: =B15+B20 -> 48116

Sheet Intézményi
A5: Leányvári oktatási intézmények normatív állami támogatásának adatai
A6: 2012. évi költségvetés
F7: Ft-ban
B8: 2012
B9: Létszám | D9: Normatíva | F9: Összeg
A10: Óvoda | B10: I-VIII.havi | C10: IX-XII.havi | D10: I-VIII.havi | E10: IX-XII.havi
A11: Alaphozzájárulás | B11: 77 | C11: 70 | D11: Tm alapján | F11: 14256666
A12: Nemzetiségi norm. | B12: 77 | C12: 70 | F12: 2986666
A13: Kedvezményes intézményi étk. | B13: 14 | F13: 952000
A14: Társulási normatíva | B14: 77 | C14: 70 | F14: 2389333
A15: Normatív hozzájárulás összesen: | F15: =SUM(F11:F14) -> 20584665
A16: Pedagógus továbbképzés | B16: 7 | F16: 44100
A17: Normatíva összesen: | F17: =SUM(F15:F16) -> 20628765
A19: Kistérségi normatíva (óvoda) | F19: 2089342
A21: Iskola
A22: 1-4. évfolyam alaphozzájárulás | B22: 72 | C22: 67 | D22: Tm alapján | F22: 17468331
A23: 5-8. évfolyam alaphozzájárulás | B23: 44 | C23: 49 | D23: Tm alapján
A24: Sajátos nevelési igényű gy. | B24: 2 | C24: 2 | F24: 313600
A25: Napközis foglalkozás | B25: 30 | C25: 28 | D25: Tm alapján | F25: 705000
A26: Nemzetiségi normatíva | B26: 116 | C26: 116 | F26: 4640000
A27: Szakmai fejl. Informatikai feladatok tám. | B27: 116 | C27: 116 | F27: 202999
A28: Kedvezményes intézményi étk. | B28: 14 | F28: 952000
A29: Társulási normatíva | B29: 116 | C29: 116 | F29: 3712001
A30: Ingyenes tankönyv | B30: 43 | F30: 516000
A31: Normatív hozzájárulás összesen | F31: =SUM(F22:F30) -> 28509931
A32: Pedagógus továbbképzés | B32: 14 | F32: 88200
A33: Osztályfőnöki pótlék | B33: 8 | F33: 207999
A34: Normatíva összesen: | F34: =SUM(F31:F33) -> 28806130
A36: Kistérségi normatíva (iskola) | F36: 3147579

Sheet Bevételek
F1: 4.számú melléklet
B3: 2012. évi költségvetés
F6: eFt-ban
B7: Intézményi működési bevételek | C7: Igazgatás | D7: Csatorna | E7: Művelődési ház | F7: összesen
B8: Felügyeleti jellegű tevékenység díja | C8: 0 | D8: 0 | E8: 0 | F8: =SUM(C8:E8) -> 0
B9: Szolgáltatások ellenértéke | C9: 600 | D9: 0 | E9: 0 | F9: =SUM(C9:E9) -> 600
B10: Egyéb sajátos bevételek | F10: 0
B11: Tovább szlázott szolg. bev. | C11: 0 | D11: 0 | E11: 0 | F11: 0
B12: Bérleti díjbevételek | C12: 930 | D12: 4204 | E12: 120 | F12: 5254
B13: Kötbér, bírság | C13: 0 | D13: 0 | E13: 0 | F13: 0
B14: Kiszámlázott ÁFA | C14: 0 | D14: 1135 | E14: 0 | F14: 1135
B15: ÁFA visszatérülés | C15: 5936 | D15: 0 | E15: 0 | F15: 5936
B16: Kamatbevétel | C16: 0 | D16: 0 | E16: 0 | F16: 0
B17: Intézményi működési bevételek összesen | C17: =SUM(C8:C16) -> 7466 | D17: =SUM(D8:D16) -> 5339 | E17: =SUM(E8:E16) -> 120 | F17: 12925

Sheet Bér, dologi
G1: 5.számú melléklet
B3: 2012. évi költségvetés
G4: eFt-ban
B5: Szakfeladat | C5: Létszám | D5: Személyi juttatás | E5: Járulék | F5: Dologi kiadások | G5: Összesen
B6: Igazgatás | D6: 3363 | E6: 958 | F6: 19200 | G6: =D6+E6+F6 -> 23521
B7: Helyi utak | F7: 1400 | G7: =D7+E7+F7 -> 1400
B8: Hulladék kez. | G8: 0
B9: Ár és belvíz | G9: 0
B10: Községgazdálkodás | C10: 1 | D10: 960 | E10: 259 | F10: 550 | G10: 1769
B11: Közvilágítás | F11: 3429 | G11: 3429
B12: Védőnői szolgálat | C12: 1 | D12: 1925 | E12: 528 | F12: 600 | G12: 3053
B13: Közfoglalkoztatás | C13: 2 | D13: 500 | E13: 135 | G13: 635
B14: Segélyek járulékai | E14: 178 | G14: 178
B15: Szennyvízelvezetés | F15: 5339 | G15: 5339
B16: Rendezvény | F16: 635 | G16: 635
B17: Temető | F17: 534 | G17: 534
B18: Kálvária | G18: 0
B19: Óvoda | G19: 0
B20: Általános Iskola | G20: 0
B21: Műv.Ház és Könyvtár | C21: 2 | D21: 3402 | E21: 928 | F21: 3178 | G21: 7508
B22: Mindösszesen: | C22: =SUM(C6:C21) -> 6 | D22: =SUM(D6:D21) -> 10150 | E22: =SUM(E6:E21) -> 2986 | F22: =SUM(F6:F21) -> 34865 | G22: =SUM(G6:G21) -> 48001

Sheet Segély
C1: 6. számú melléklet
B3: Szociális ellátások
B5: 2012. évi költségvetés
C7: eFt-ban
B8: Jogcím | C8: 2012
B9: Rászorultságtól függő pénzbeli,szociális, gyerekvédelmi ellátások
B10: Rendszeres szoc.segély | C10: 156
B11: FHT | C11: 590
B12: Időskorúak járadéka | C12: 36
B13: Lakásfenntart. tám. (normatív) | C13: 250
B14: Lakásfenntart. tám. (helyi)
B15: Ápolási díj (normatív) | C15: 264
B16: Ápolási díj (helyi)
B17: Átmeneti segély | C17: 150
B18: Temetési segély | C18: 100
B19: Rendkív.gyermekvédelmi tám.
B20: Lakáshoz jutási támogatás | C20: 200
B21: kórházi ápolás
B22: eseti gyógyszer tám.
B23: harmadik gyermek szül.
B24: összesen | C24: =SUM(C10:C20) -> 1746
B25: Természetben nyújtott szociális ellátások
B26: Természetbeni átm. segély tüzelő, int. tér. | C26: 700 | D26: fetáz
B27: Köztemetés
B28: Közgyógyellátás
B29: összesen: | C29: =SUM(C26:C28) -> 700
B31: Folyósított ellátás összesen | C31: =C24+C29 -> 2446

Sheet Fejlesztés
D2: 7. számú melléklet
A4: Felhalmozási kiadások 2012.
C10: eFt-ban
B11: Beruházási kiadások | C11: 2012
B12: Művelődési Ház eszközbeszerzés | C12: 1600
B13: összesen: | C13: =SUM(C12:C12) -> 1600
B15: Felújítási kiadások
B17: Művelődési Ház felújítása | C17: 1750
B18: összesen: | C18: =SUM(C16:C17) -> 1750
B20: Felhalmozási kiadások összesen: | C20: =C13+C18 -> 3350

Sheet Átadott pénzeszközök
C1: 8. számú melléklet
B3: Átadott pénzeszközök
B4: Közoktatási társulás nélkül
C5: eFt-ban
C6: 2012
B7: Átadott pénzeszközök
B8: Települési Önkorm. Orsz. Szöv. tagdíj (TÖOSZ) | C8: 40
B9: Pilis Gerecse | C9: 295
B10: Ister Gránum | C10: 18
B11: Duna Vértes | C11: 50
B12: kistérségi tagdíj | C12: 230
B13: civil szervezeteknek átadott pénzeszköz | C13: 700
B14: Kistérségi társulásnak (Házi szoc. ellátás) | C14: 932
B15: Kistérségi társulásnak (Gy. jólét. alap.) | C15: 881
B16: Körjegyzőségnek | C16: 19172
B17: Közoktatási társulásnak | C17: =C18+C19 -> 52439
B18: - ebből: önkormányzati hozzájárulás (iskola) | C18: 34833
B19: önkormányzati hozzájárulás (óvoda) | C19: 17606
B20: Vállalkozásnak (isk. eü.) | C20: 110
B21: Műk. célú pénzeszk. átadás össz. | C21: =C14+C15+C16+C17+C20+C8+C9+C10+C11+C13+C12 -> 74867

Sheet Társulásnak átad.
F1: 9. számú melléklet
A4: Iskola, Óvoda | F4: eFt
A5: Bevételek | D5: Kiadások
B6: 2011 | C6: 2012 | E6: 2011 | F6: 2012
A7: Normatíva (3/a.sz.melléklet) | B7: =B8+B9 -> 50682 | C7: =C8+C9 -> 49435 | D7: Személyi juttatások | E7: =E8+E9 -> 67577 | F7: =F8+F9 -> 68706
A8: ebből: iskola | B8: 31382 | C8: 28806 | D8: ebből: iskola | E8: 43815 | F8: 43176
A9: óvoda | B9: 19300 | C9: 20629 | D9: óvoda | E9: 23762 | F9: 25530
A10: Kistérségi normatíva (3/a.) | B10: =B11+B12 -> 5179 | C10: =C11+C12 -> 5236 | D10: Munkaadót terh. befizetések | E10: =E11+E12 -> 17817 | F10: =F11+F12 -> 18121
A11: ebből: iskola | B11: 3342 | C11: 3147 | D11: ebből: iskola | E11: 11470 | F11: 11288
A12: óvoda | B12: 1837 | C12: 2089 | D12: óvoda | E12: 6347 | F12: 6833
A13: Intézmény saját bevétele | B13: =B14+B15 -> 3000 | C13: =C14+C15 -> 4138 | D13: Dologi kiadások | E13: =E14+E15 -> 20237 | F13: =F14+F15 -> 22163
A14: ebből: iskola | B14: 1000 | C14: 1338 | D14: ebből: iskola | E14: 11996 | F14: 12303
A15: óvoda | B15: 2000 | C15: 2800 | D15: óvoda | E15: 8241 | F15: 9860
A16: Intézm. egyéb saját bevétele | B16: =B17+B18 -> 4027 | D16: Közös költségek | E16: =E17+E18 -> 2951 | F16: =F17+F18 -> 2258
A17: ebből: iskola | D17: ebből: iskola | E17: 1904 | F17: 1357
A18: óvoda | B18: 4027 | D18: óvoda | E18: 1047 | F18: 901
A19: Bevételek összesen: | B19: =B7+B10+B13+B16 -> 62888 | C19: =C7+C10+C13 -> 58809 | D19: Kiadások összesen: | E19: =E7+E10+E13+E16 -> 108582 | F19: =F7+F10+F13+F16 -> 111248
B20: 2011 | C20: 2012
A21: Normatíva elszámolás
A22: ebből: iskola | B22: 2000
A23: óvoda | B23: 432
A24: önkormányzati hozzájárulás | B24: =B25+B26 -> 43262 | C24: =C25+C26 -> 52439
A25: ebből: iskola | B25: =E8+E11+E14+E17-B8-B11-B14-B22 -> 31461 | C25: =F8+F11+F14+F17-C8-C11-C14-C22 -> 34833
A26: ebből: óvoda | B26: =E9+E12+E15+E18-B9-B12-B15-B18-B23 -> 11801 | C26: =F9+F12+F15+F18-C9-C12-C15-C23 -> 17606

Sheet kisebbs
A2: Kisebbségi Önkormányzat
A3: 2012. évi költségvetése
C7: 2012
B9: Bevételek
B10: Normatív támogatás | C10: 214
B11: Előző évi pénzmaradvány | C11: 1081
B12: Saját bevétel
B13: Összesen | C13: =SUM(C10:C12) -> 1295
B14: Kiadások
B15: Irodaszer
B16: Folyóirat
B17: Egyéb készlet besz. | C17: 50
B18: Vásárolt élelmezés
B19: Szállítás | C19: 119
B20: Gázdíj
B21: Villamosenergia
B22: Vízdíj
B23: Karbantartás
B24: Egyéb üzemeltetési kiadás
B25: Kiküldetés
B26: ÁFA | C26: 45
B27: Reprezentáció
B28: Adók, díjak
B29: Összesen | C29: =SUM(C15:C28) -> 214
B31: Személyi juttatás
B32: Járulék
B33: Átadott pénzeszköz
B34: Céltartalék (Tájház)
B35: Általános tartalék | C35: 1081
B36: Kiadások összesen: | C36: =SUM(C29:C35) -> 1295
A38: A ……………. számú Német Képviselő-testületi határozattal a Német Nemzetiségi Önkormányzat 2012. évi költségvetése elfogadásra került.
